bitfinex-derivatives/quotes_SOLF0:USTF0_20250623
["timestamp","ask_amount","ask_price","bid_price","bid_amount"]
[1750717944892,2.1718,146.34,146.22,5.75861188]
[1750717945086,9.54040697,146.3,146.18,5.75861188]
[1750717945286,64.14,146.3,146.18,5.75861188]
[1750717945486,64.14,146.3,146.25,6.833]
[1750717945692,4.5011,146.38,146.26,73.68040697]
[1750717945893,14.04150697,146.38,146.26,9.54040697]
[1750717946088,14.04150697,146.38,146.27,9.54040697]
[1750717946295,4.5011,146.38,146.26,15.67652039]
[1750717946593,4.5011,146.38,146.25,69.89861188]
[1750717946796,15.67652039,146.35,146.24,177.66]
[1750717946997,64.14,146.34,146.24,177.66]
[1750717947204,6.8297,146.33,146.26,6.8326]
[1750717947490,64.14,146.34,146.24,177.66]
[1750717948288,15.67652039,146.32,146.18,595.65861188]
[1750717948485,15.67652039,146.29,146.17,177.58]
[1750717948688,64.14,146.28,146.17,184.4165]
[1750717948892,64.14,146.28,146.17,177.58]
[1750717948893,71.191,146.28,146.17,177.58]
[1750717949597,68.7834,146.28,146.18,15.67652039]
[1750717949797,68.7834,146.28,146.17,177.58]
[1750717950296,15.67652039,146.27,146.18,6.8361]
[1750717950495,15.67652039,146.27,146.13,177.52]
[1750717951199,15.67652039,146.21,146.09,62.0]
[1750717951397,2.39,146.2,146.08,654.16]
[1750717951993,15.67652039,146.18,146.08,654.16]
[1750717952303,15.67652039,146.18,146.05,64.18]
[1750717952797,15.67652039,146.15,146.03,241.64]
[1750717953000,15.67652039,146.15,146.02,590.14]
[1750717953001,79.85652039,146.15,146.02,590.14]
[1750717953992,64.18,146.15,146.02,590.14]
[1750717954192,15.67652039,146.14,146.02,590.14]
[1750717954389,15.67652039,146.11,146.01,64.18]
[1750717954709,64.18,146.15,145.94,128.05405761]
[1750717954710,15.67652039,146.05,145.95,64.2]
[1750717955095,6.8439,146.02,145.95,71.0471]
[1750717955290,15.67652039,146.05,145.95,64.2]
[1750717955792,64.2,146.06,145.95,64.2]
[1750717956503,15.67652039,146.04,145.95,64.2]
[1750717957214,64.2,146.06,145.95,64.2]
[1750717957400,15.67652039,146.05,145.95,64.2]
[1750717957701,15.67652039,146.05,145.9,15.67652039]
[1750717957702,6.8454,145.99,145.92,6.8482]
[1750717957906,15.67652039,146.02,145.9,240.64]
[1750717958199,15.67652039,146.06,145.93,15.67652039]
[1750717958400,15.67652039,146.03,145.9,240.64]
[1750717958605,2.1937,146.02,145.9,240.64]
[1750717958901,2.1937,146.02,145.78,13.7094]
[1750717958902,15.67652039,146.0,145.85,15.67652039]
[1750717959100,15.67652039,146.0,145.89,177.38]
[1750717959396,15.67652039,145.97,145.85,63.32]
[1750717959603,68.0533,146.01,145.83,590.72]
[1750717959794,15.67652039,145.94,145.71,13.7169]
[1750717959996,15.67652039,145.94,145.81,15.67652039]
[1750717960199,15.67652039,145.94,145.82,240.64]
[1750717960392,63.32,145.95,145.82,240.64]
[1750717960594,4.7333,146.01,145.87,15.67652039]
[1750717960789,15.67652039,145.99,145.83,62.0]
[1750717961001,15.67652039,145.99,145.84,15.67652039]
[1750717961299,6.8462,145.98,145.9,6.8491]
[1750717961500,63.36,146.0,145.9,177.34]
[1750717961799,79.03652039,146.09,145.96,15.67652039]
[1750717961994,15.67652039,146.09,145.97,177.32]
[1750717962197,83.58372039,146.11,145.97,177.32]
[1750717962396,6.8407,146.09,146.02,6.8434]
[1750717962605,83.58372039,146.11,145.97,177.32]
[1750717962801,90.42382039,146.11,146.03,6.843]
[1750717962997,90.42382039,146.11,146.02,63.36]
[1750717962998,4.5472,146.11,146.02,63.36]
[1750717963301,15.67652039,146.09,145.98,63.36]
[1750717963502,6.8412,146.08,146.0,6.8444]
[1750717963692,15.67652039,146.09,145.98,63.36]
[1750717964194,79.03652039,146.09,145.98,63.36]
[1750717964603,79.03652039,146.09,146.01,6.8441]
[1750717964604,6.8415,146.08,146.01,6.8441]
[1750717964799,63.36,146.09,145.98,63.36]
[1750717965200,15.67652039,146.07,145.98,63.36]
[1750717965401,15.67652039,146.04,145.97,177.32]
[1750717966797,63.38,146.03,145.97,177.32]
[1750717967096,15.67652039,146.01,145.91,177.12]
[1750717967299,2.2653,146.0,145.91,177.12]
[1750717967508,6.8476,145.94,145.91,177.12]
[1750717967809,2.2653,146.0,145.91,177.12]
[1750717967996,15.67652039,145.99,145.91,177.12]
[1750717968396,6.849,145.92,145.86,6.851]
[1750717968598,2.2653,146.0,145.85,62.0]
[1750717968906,70.2244,146.01,145.94,6.8472]
[1750717969112,4.7466,146.02,145.91,177.08]
[1750717969302,81.35992039,146.07,145.92,15.67652039]
[1750717969603,18.03872039,146.06,145.96,6.8463]
[1750717969800,18.03872039,146.06,145.91,177.08]
[1750717970003,18.03872039,146.06,145.96,6.8464]
[1750717970404,18.03872039,146.06,145.92,15.67652039]
[1750717971002,2.3622,146.06,145.92,15.67652039]
[1750717971209,6.843,146.04,145.97,6.8458]
[1750717971411,606.81652039,146.05,145.91,177.0]
[1750717971613,591.14,146.05,145.94,15.67652039]
[1750717971809,6.8428,146.05,145.97,6.8458]
[1750717972001,2.3622,146.06,145.97,15.67652039]
[1750717972310,63.38,146.07,145.97,77.67652039]
[1750717972716,2.3461,146.09,145.97,77.67652039]
[1750717972911,68.0971,146.11,146.0,15.67652039]
[1750717973107,83.77362039,146.11,146.0,176.94]
[1750717974004,68.0971,146.11,146.0,176.94]
[1750717974208,77.66484582,146.11,146.0,176.94]
[1750717974615,9.56774582,146.08,146.0,176.94]
[1750717975018,9.56774582,146.05,145.9,591.14]
[1750717975220,9.56774582,146.05,145.93,9.56774582]
[1750717976215,9.56774582,146.08,145.94,62.0]
[1750717977516,20.52,146.03,145.79,5.77648353]
[1750717977818,20.52,146.03,145.67,3.59939648]
[1750717977819,19.13549164,145.8,145.67,3.59939648]
[1750717978015,9.56774582,145.68,145.57,60.15939648]
[1750717978221,15.82491049,145.71,145.57,60.15939648]
[1750717978511,15.82491049,145.77,145.62,15.82491049]
[1750717978714,2.3129,145.79,145.66,15.82491049]
[1750717978913,6.8557,145.77,145.69,15.82491049]
[1750717979213,1044.62,145.76,145.51,15.82491049]
[1750717979418,654.86,145.75,145.54,15.82491049]
[1750717979611,654.86,145.75,145.54,176.74]
[1750717979813,6.8608,145.66,145.57,22.68971049]
[1750717980009,15.82491049,145.7,145.58,63.4]
[1750717980214,4.4949,145.78,145.58,63.4]
[1750717980407,15.82491049,145.7,145.58,63.4]
[1750717980607,15.82491049,145.76,145.62,15.82491049]
[1750717980923,63.4,145.86,145.68,15.82491049]
[1750717981115,15.82491049,145.84,145.69,63.4]
[1750717981307,4.5311,145.88,145.69,63.4]
[1750717981511,15.82491049,145.84,145.69,79.22491049]
[1750717981815,79.22491049,145.87,145.72,15.82491049]
[1750717982019,591.84,145.96,145.78,15.82491049]
[1750717982215,591.84,145.96,145.79,655.28]
[1750717982216,4.6582,145.95,145.79,655.28]
[1750717982418,15.82491049,145.93,145.79,671.10491049]
[1750717982917,2.2805,145.92,145.79,671.10491049]
[1750717983120,2.2805,145.92,145.79,655.28]
[1750717983317,2.2805,145.92,145.79,671.10491049]
[1750717983923,4.6582,145.95,145.82,15.82491049]
[1750717984221,4.6582,145.95,145.83,62.0]
[1750717984522,11.5054,145.95,145.86,6.8511]
[1750717985120,6.8479,145.94,145.85,70.2918]
[1750717985322,15.82491049,145.93,145.83,62.0]
[1750717985525,15.82491049,145.94,145.8,63.44]
[1750717985723,4.6582,145.95,145.82,15.82491049]
[1750717985917,4.6582,145.95,145.8,79.26491049]
[1750717985918,15.82491049,145.93,145.8,79.26491049]
[1750717986220,4.6582,145.95,145.8,63.44]
[1750717986221,15.82491049,145.9,145.8,63.44]
[1750717986818,15.82491049,145.89,145.8,63.44]
[1750717987423,15.82491049,145.86,145.74,63.44]
[1750717987722,15.82491049,145.83,145.72,240.22]
[1750717987921,15.82491049,145.83,145.74,6.857]
[1750717988122,15.82491049,145.83,145.72,240.22]
[1750717988324,22.67931049,145.8,145.72,70.298]
[1750717988515,2.2222,145.85,145.6,83.66597407]
[1750717988516,15.82491049,145.77,145.63,62.76]
[1750717988719,62.76,145.77,145.63,62.76]
[1750717989026,15.82491049,145.74,145.64,6.8613]
[1750717989227,15.82491049,145.74,145.63,62.76]
[1750717989427,4.4537,145.76,145.56,62.76]
[1750717989428,15.82491049,145.67,145.56,62.76]
[1750717989627,15.82491049,145.64,145.53,62.76]
[1750717990323,62.76,145.65,145.53,62.76]
[1750717990633,18.17031049,145.67,145.53,62.76]
[1750717990924,15.82491049,145.67,145.53,62.76]
[1750717991430,654.64,145.69,145.55,15.82491049]
[1750717991727,654.64,145.69,145.58,15.82491049]
[1750717991728,62.76,145.69,145.58,15.82491049]
[1750717992021,62.76,145.69,145.59,62.8]
[1750717992220,62.76,145.69,145.55,78.62491049]
[1750717993620,69.6194,145.69,145.61,6.863]
[1750717994323,6.8599,145.68,145.6,6.8636]
[1750717994519,62.76,145.69,145.56,15.82491049]
[1750717994917,6.8602,145.68,145.6,6.8632]
[1750717995218,62.76,145.69,145.58,15.82491049]
[1750717995417,69.6198,145.69,145.58,15.82491049]
[1750717995617,2.3804,145.72,145.61,15.82491049]
[1750717995932,2.3804,145.72,145.57,15.82491049]
[1750717995933,15.82491049,145.71,145.57,15.82491049]
[1750717996431,65.2004,145.72,145.6,15.82491049]
[1750717996627,2.2315,145.76,145.63,15.82491049]
[1750717996819,2.2315,145.76,145.6,62.82]
[1750717997019,2.2315,145.76,145.64,15.82491049]
[1750717997228,2.2315,145.76,145.44,19.42430697]
[1750717997229,2.2414,145.83,145.7,15.82491049]
[1750717997434,2.2414,145.83,145.7,78.64491049]
[1750717997727,2.2483,145.85,145.73,15.82491049]
[1750717997923,18.07321049,145.85,145.7,62.82]
[1750717998119,18.07321049,145.85,145.74,6.857]
[1750717998431,80.89321049,145.85,145.7,78.64491049]
[1750717998722,6.8533,145.82,145.74,6.857]
[1750717999131,80.89321049,145.85,145.71,62.0]
[1750717999739,15.82491049,145.82,145.71,62.0]
[1750718000334,15.82491049,145.82,145.7,62.82]
[1750718001536,6.8556,145.77,145.7,69.6785]
[1750718001931,15.82491049,145.82,145.7,62.82]
[1750718002425,15.82491049,145.81,145.7,62.82]
[1750718002622,15.82491049,145.83,145.71,15.82491049]
[1750718002827,80.89321049,145.85,145.71,15.82491049]
[1750718003030,2.2483,145.85,145.71,15.82491049]
[1750718003231,2.3528,145.86,145.7,62.82]
[1750718003430,2.3528,145.86,145.73,15.82491049]
[1750718003827,62.82,145.88,145.76,15.82491049]
[1750718004026,62.82,145.88,145.77,62.82]
[1750718004935,15.82491049,145.87,145.75,15.82491049]
[1750718005134,15.82491049,145.87,145.73,62.82]
[1750718005329,15.82491049,145.84,145.73,62.82]
[1750718005530,2.3304,145.89,145.73,62.82]
[1750718005531,15.82491049,145.81,145.73,62.82]
[1750718005735,15.82491049,145.81,145.69,176.78]
[1750718005736,15.82491049,145.81,145.69,239.6]
[1750718005937,6.8564,145.76,145.69,246.4593]
[1750718006137,18.14121049,145.81,145.69,239.6]
[1750718006835,15.82491049,145.78,145.69,239.6]
[1750718007638,2.3163,145.81,145.69,239.6]
[1750718007830,2.3163,145.81,145.71,15.82491049]
[1750718008033,2.3163,145.81,145.69,255.42491049]
[1750718008740,2.3163,145.81,145.7,62.0]
[1750718009042,2.3262,145.83,145.7,62.0]
[1750718009233,2.3262,145.83,145.72,15.82491049]
[1750718009633,2.3262,145.83,145.69,239.6]
[1750718009934,2.3262,145.83,145.7,15.82491049]
[1750718010141,15.82491049,145.81,145.67,608.34491049]
[1750718010329,6.856,145.77,145.7,6.8585]
[1750718010840,15.82491049,145.78,145.69,69.6593]
[1750718011140,15.82491049,145.78,145.69,62.8]
[1750718011342,15.82491049,145.78,145.67,769.2]
[1750718011343,6.8576,145.73,145.67,592.52]
[1750718011544,15.82491049,145.75,145.65,62.8]
[1750718012039,15.82491049,145.72,145.61,62.8]
[1750718012433,15.82491049,145.71,145.6,592.3]
[1750718012635,62.8,145.76,145.6,592.3]
[1750718012835,15.82491049,145.74,145.6,608.12491049]
[1750718013139,15.82491049,145.71,145.6,592.3]
[1750718013534,6.8597,145.69,145.6,592.3]
[1750718013733,15.82491049,145.72,145.6,592.3]
[1750718014536,2.2786,145.73,145.58,6.8644]
[1750718014537,6.8616,145.65,145.58,6.8644]
[1750718014751,15.82491049,145.66,145.55,176.64]
[1750718015136,6.8614,145.65,145.59,6.8641]
[1750718015445,18.21121049,145.68,145.55,238.64]
[1750718015645,6.8608,145.66,145.55,238.64]
[1750718015845,2.3863,145.68,145.55,192.46491049]
[1750718016146,2.3863,145.68,145.55,176.64]
[1750718016440,15.82491049,145.7,145.56,15.82491049]
[1750718016640,18.05331049,145.71,145.56,15.82491049]
[1750718017139,6.8603,145.67,145.61,6.8628]
[1750718017341,15.82491049,145.69,145.6,62.82]
[1750718017547,15.82491049,145.69,145.55,192.46491049]
[1750718017548,15.82491049,145.69,145.57,62.82]
[1750718018140,15.82491049,145.7,145.57,78.64491049]
[1750718018444,15.82491049,145.67,145.56,62.6]
[1750718018649,15.82491049,145.69,145.56,62.6]
[1750718018945,15.82491049,145.69,145.57,77.82491049]
[1750718019443,15.82491049,145.69,145.57,62.0]
[1750718019844,6.8626,145.63,145.57,6.865]
[1750718020046,15.82491049,145.66,145.56,62.6]
[1750718020348,6.8631,145.62,145.56,69.4655]
[1750718020544,15.82491049,145.66,145.56,69.4655]
[1750718020841,15.82491049,145.66,145.56,62.6]
[1750718021050,15.82491049,145.63,145.5,62.62]
[1750718021233,15.82491049,145.57,145.44,3.59939648]
[1750718021436,62.62,145.63,145.48,15.82491049]
[1750718021437,6.8639,145.6,145.48,15.82491049]
[1750718021645,6.8507,145.62,145.5,15.82491049]
[1750718021838,6.8645,145.59,145.52,6.8671]
[1750718022141,6.8507,145.62,145.48,15.82491049]
[1750718022342,6.8638,145.6,145.54,6.8664]
[1750718022645,4.4894,145.62,145.53,62.62]
[1750718022846,681.2394691,145.92,145.48,15.82491049]
[1750718022847,6.8608,145.66,145.6,6.8633]
[1750718023146,15.82491049,145.71,145.6,62.62]
[1750718023946,6.8595,145.69,145.63,6.8622]
[1750718024142,15.82491049,145.71,145.6,62.62]
[1750718024534,6.86,145.68,145.61,6.863]
[1750718024938,15.82491049,145.71,145.6,62.62]
[1750718025542,6.8602,145.68,145.63,6.8622]
[1750718025743,15.82491049,145.71,145.6,62.62]
[1750718026341,15.82491049,145.68,145.6,62.62]
[1750718026648,6.8608,145.66,145.6,62.62]
[1750718026852,15.82491049,145.68,145.6,62.62]
[1750718027344,15.82491049,145.71,145.6,62.62]
[1750718028049,80.64071049,145.74,145.6,62.62]
[1750718028351,15.82491049,145.71,145.6,62.62]
[1750718028743,2.2677,145.75,145.6,62.62]
[1750718028948,15.82491049,145.73,145.6,671.22491049]
[1750718029145,2.2402,145.74,145.53,7.80515208]
[1750718029146,852.45,145.72,145.53,7.80515208]
[1750718029341,15.82491049,145.59,145.44,3.59939648]
[1750718029548,592.76,145.63,145.44,3.59939648]
[1750718029843,15.82491049,145.55,145.45,62.62]
[1750718030045,78.44491049,145.55,145.44,3.59939648]
[1750718030343,6.6596,145.62,145.45,15.82491049]
[1750718030553,12.55237593,145.8,145.44,596.35939648]
[1750718030746,15.82491049,145.64,145.49,15.82491049]
[1750718031050,15.82491049,145.55,145.45,62.62]
[1750718031236,15.82491049,145.52,145.44,3.59939648]
[1750718031737,78.44491049,145.54,145.44,3.59939648]
[1750718032143,4.3647,145.55,145.44,3.59939648]
[1750718032447,15.82491049,145.52,145.44,3.59939648]
[1750718032648,2.1873,145.55,145.34,11.68567635]
[1750718032649,2.4174,145.54,145.34,7.80515208]
[1750718032839,2.4174,145.54,145.24,9.80735347]
[1750718032840,852.3,145.53,145.24,9.80735347]
[1750718033043,134.91802287,145.52,145.14,7.99335675]
[1750718033247,134.91802287,145.52,145.13,592.98]
[1750718033248,15.82491049,145.44,145.19,6.8825]
[1750718033447,15.82491049,145.44,145.13,592.98]
[1750718033448,595.1673,145.43,145.13,592.98]
[1750718033653,595.1673,145.43,145.05,7.99335675]
[1750718033654,595.1673,145.43,145.1,15.82491049]
[1750718033846,595.1673,145.43,145.1,229.6]
[1750718034041,595.1673,145.43,145.11,62.0]
[1750718034243,595.1673,145.43,145.21,2.40939648]
[1750718034447,2.48364127,145.42,145.21,2.40939648]
[1750718034646,15.82491049,145.26,145.21,2.40939648]
[1750718034843,15.82491049,145.29,145.21,2.40939648]
[1750718035046,236.7,145.41,145.21,2.40939648]
[1750718035241,15.82491049,145.31,145.21,2.40939648]
[1750718035547,595.1673,145.43,145.21,2.40939648]
[1750718035754,15.82491049,145.34,145.21,2.40939648]
[1750718035944,6.8757,145.35,145.21,2.40939648]
[1750718036141,595.1673,145.43,145.21,2.40939648]
[1750718036142,595.1673,145.43,145.23,15.82491049]
[1750718036348,15.82491049,145.42,145.26,15.82491049]
[1750718036547,2.1873,145.43,145.27,2.3963]
[1750718036746,18.01221049,145.43,145.3,15.82491049]
[1750718036972,63.80684872,145.52,145.27,2.3963]
[1750718037159,2.3668,145.55,145.27,2.3963]
[1750718037453,2.3668,145.55,145.34,15.82491049]
[1750718037652,6.8697,145.48,145.37,15.82491049]
[1750718037855,15.82491049,145.52,145.38,62.0]
[1750718038061,2.3668,145.55,145.38,64.3963]
[1750718038248,2.3668,145.55,145.41,15.82491049]
[1750718038955,6.867,145.53,145.41,15.82491049]
[1750718039156,2.3668,145.55,145.41,15.82491049]
[1750718039357,2.3668,145.55,145.44,15.82491049]
[1750718039857,2.3668,145.55,145.43,15.82491049]
[1750718040056,15.82491049,145.54,145.41,593.48]
[1750718040258,15.82491049,145.51,145.38,80.22121049]
[1750718040460,2.3668,145.55,145.38,64.3963]
[1750718040461,6.8714,145.44,145.38,64.3963]
[1750718040755,15.82491049,145.42,145.26,593.48]
[1750718040951,15.82491049,145.42,145.21,2.40939648]
[1750718040952,6.8784,145.29,145.22,4.7357]
[1750718041151,4.6267,145.41,145.23,15.82491049]
[1750718041444,15.82491049,145.33,145.22,4.7357]
[1750718041645,15.82491049,145.32,145.22,4.7357]
[1750718042054,15.82491049,145.35,145.22,4.7357]
[1750718042259,593.56,145.38,145.22,4.7357]
[1750718042461,15.82491049,145.36,145.22,4.7357]
[1750718042661,6.8765,145.33,145.22,4.7357]
[1750718042963,593.56,145.38,145.23,15.82491049]
[1750718043160,2.4059,145.41,145.29,15.82491049]
[1750718043365,15.82491049,145.47,145.32,15.82491049]
[1750718043558,15.82491049,145.47,145.33,64.4106]
[1750718043856,600.5851,145.53,145.33,64.4106]
[1750718044062,15.82491049,145.5,145.35,15.82491049]
[1750718044261,15.82491049,145.5,145.35,22.69991049]
[1750718044453,15.82491049,145.47,145.34,2.1885]
[1750718044859,15.82491049,145.48,145.34,2.1885]
[1750718045063,15.82491049,145.44,145.16,5.90242843]
[1750718045267,15.82491049,145.41,145.29,2.2896]
[1750718045558,15.82491049,145.38,145.24,593.64]
[1750718045759,15.82491049,145.32,145.22,4.4781]
[1750718045964,6.8782,145.3,145.22,2.2896]
[1750718046158,15.82491049,145.33,145.22,2.2896]
[1750718046365,15.82491049,145.33,145.22,9.171]
[1750718046556,598.1496,145.4,145.25,15.82491049]
[1750718046756,613.97451049,145.4,145.25,15.82491049]
[1750718046959,2.2887,145.4,145.28,15.82491049]
[1750718047156,2.2887,145.4,145.29,62.0]
[1750718048366,2.2887,145.4,145.26,609.46491049]
[1750718048566,9.1622,145.4,145.3,6.8773]
[1750718048867,9.1622,145.4,145.26,609.46491049]
[1750718048868,2.2887,145.4,145.27,2.2213]
[1750718049257,18.11361049,145.4,145.27,2.2213]
[1750718049465,2.2887,145.4,145.29,15.82491049]
[1750718049765,15.82491049,145.46,145.32,15.82491049]
[1750718049952,15.82491049,145.46,145.33,2.1854]
[1750718050568,15.82491049,145.43,145.33,2.1854]
[1750718051065,593.64,145.47,145.33,2.1854]
[1750718051263,15.82491049,145.44,145.33,2.1854]
[1750718051764,4.6548,145.49,145.33,2.1854]
[1750718051959,20.47971049,145.49,145.34,15.82491049]
[1750718052263,15.82491049,145.43,145.33,2.1854]
[1750718052668,4.6548,145.49,145.33,2.1854]
[1750718052869,15.82491049,145.46,145.33,2.1854]
[1750718053663,4.6548,145.49,145.33,2.1854]
[1750718053967,15.82491049,145.47,145.33,2.1854]
[1750718054167,4.6548,145.49,145.34,15.82491049]
[1750718054560,20.47971049,145.49,145.34,15.82491049]
[1750718054772,15.82491049,145.46,145.33,18.01031049]
[1750718055664,15.82491049,145.47,145.34,15.82491049]
[1750718055865,15.82491049,145.47,145.33,2.1854]
[1750718056872,15.82491049,145.41,145.33,2.1854]
[1750718057474,15.82491049,145.41,145.27,2.2213]
[1750718057662,15.82491049,145.41,145.27,4.5059]
[1750718057973,15.82491049,145.38,145.27,2.2846]
[1750718058173,2.1829,145.37,145.27,2.2846]
[1750718058977,18.00781049,145.37,145.27,2.2846]
[1750718059173,15.82491049,145.34,145.27,2.2846]
[1750718059375,15.82491049,145.35,145.27,2.2846]
[1750718059565,2.1829,145.37,145.27,2.2846]
[1750718059968,2.1829,145.37,145.21,18.23430697]
[1750718060168,2.1829,145.37,145.24,18.11761049]
[1750718060469,15.82491049,145.35,145.24,2.2927]
[1750718060669,15.82491049,145.32,145.21,2.40939648]
[1750718061167,15.82491049,145.29,145.21,2.40939648]
[1750718061771,593.92,145.36,145.05,5.90414156]
[1750718061975,230.2963,145.28,145.09,15.82491049]
[1750718062170,20.31371049,145.27,145.12,15.82491049]
[1750718062379,20.31371049,145.27,145.13,2.2927]
[1750718062677,4.4888,145.27,145.13,2.2927]
[1750718062867,15.82491049,145.22,145.13,2.2927]
[1750718063065,15.82491049,145.19,145.13,2.2927]
[1750718063269,15.82491049,145.19,145.05,228.12]
[1750718063475,594.12,145.24,144.98,2.2527]
[1750718063683,594.12,145.24,145.04,2.3709]
[1750718063975,15.82491049,145.17,145.04,2.3709]
[1750718064168,15.82491049,145.14,145.04,2.3709]
[1750718064369,15.82491049,145.14,144.98,2.2527]
[1750718064370,15.82491049,145.11,144.98,2.2527]
[1750718064570,2.196,145.15,144.97,4.79900351]
[1750718064785,18.02091049,145.15,145.01,15.82491049]
[1750718065077,20.50191049,145.16,145.02,2.3709]
[1750718065277,4.677,145.16,145.04,15.82491049]
[1750718065474,2.2968,145.16,145.07,15.82491049]
[1750718065666,4.7084,145.23,145.1,15.82491049]
[1750718065867,2.2968,145.23,145.1,15.82491049]
[1750718066072,2.2968,145.23,145.13,15.82491049]
[1750718066274,2.2968,145.23,145.14,2.1842]
[1750718066869,2.2968,145.23,145.15,227.66]
[1750718067083,15.82491049,145.29,145.15,243.48491049]
[1750718067286,2.2898,145.31,145.15,243.48491049]
[1750718067484,15.82491049,145.3,145.15,243.48491049]
[1750718067878,2.2898,145.31,145.18,15.82491049]
[1750718068385,2.2898,145.31,145.19,62.0]
[1750718068774,2.2898,145.31,145.22,15.82491049]
[1750718069076,2.2898,145.31,145.23,2.1842]
[1750718069278,2.3264,145.38,145.23,2.1842]
[1750718069478,15.82491049,145.36,145.23,2.1842]
[1750718069679,2.2898,145.37,145.2,2.1914]
[1750718069878,15.82491049,145.35,145.22,18.03421049]
[1750718070283,15.82491049,145.35,145.22,2.2093]
[1750718070785,15.82491049,145.32,145.22,2.2093]
[1750718070979,9.1208,145.37,145.22,2.2093]
[1750718071281,15.82491049,145.32,145.15,227.66]
[1750718071487,15.82491049,145.31,145.17,15.82491049]
[1750718071881,2.2898,145.37,145.18,62.0]
[1750718072075,15.82491049,145.29,145.18,62.0]
[1750718072279,15.82491049,145.26,145.16,2.2093]
[1750718072579,2.3286,145.25,145.16,2.2093]
[1750718072981,2.3286,145.25,145.1,224.92]
[1750718073183,2.3286,145.25,145.12,15.82491049]
[1750718073386,2.3286,145.25,145.1,224.92]
[1750718073584,2.3286,145.25,145.16,15.82491049]
[1750718073782,2.3286,145.25,145.14,15.82491049]
[1750718073979,2.3286,145.25,145.1,224.92]
[1750718074391,2.3286,145.25,145.13,15.82491049]
[1750718074682,2.3286,145.25,145.12,15.82491049]
[1750718075085,2.3286,145.25,145.1,224.92]
[1750718075285,2.3286,145.25,145.12,15.82491049]
[1750718075591,2.3286,145.25,145.11,62.0]
[1750718075890,2.3286,145.25,145.16,15.82491049]
[1750718076188,2.3286,145.25,145.08,8.23514939]
[1750718076189,2.85564388,145.24,145.08,2.3077]
[1750718076379,15.82491049,145.22,145.08,18.13261049]
[1750718076578,15.82491049,145.22,145.08,2.3077]
[1750718076976,15.82491049,145.19,145.08,2.3077]
[1750718077179,2.3473,145.18,145.08,2.3077]
[1750718077386,15.82491049,145.17,145.08,2.3077]
[1750718077886,15.82491049,145.14,144.99,5.92744939]
[1750718078085,15.82491049,145.14,145.02,15.82491049]
[1750718078086,2.3137,145.13,145.02,15.82491049]
[1750718078287,2.3137,145.13,145.0,226.6378]
[1750718078486,2.3137,145.13,145.01,15.82491049]
[1750718078795,2.3137,145.13,145.0,226.6378]
[1750718079085,2.3137,145.13,145.0,242.46271049]
[1750718079294,2.3137,145.13,145.0,2.3578]
[1750718079589,18.13861049,145.13,145.0,2.3578]
[1750718080194,18.13861049,145.13,144.97,823.17900351]
[1750718080195,15.82491049,145.06,144.97,3.59939648]
[1750718080586,15.82491049,145.09,144.97,3.59939648]
[1750718081010,2.3137,145.13,144.97,3.59939648]
[1750718081188,2.3137,145.13,144.98,224.16]
[1750718081494,15.82491049,145.12,144.98,224.16]
[1750718082391,15.82491049,145.09,144.99,62.0]
[1750718082597,2.3213,145.08,144.98,224.16]
[1750718083488,15.82491049,145.06,144.98,224.16]
[1750718083787,2.3213,145.08,144.98,224.16]
[1750718083991,2.3137,145.13,144.99,15.82491049]
[1750718084194,2.3137,145.13,144.99,18.10321049]
[1750718084394,2.3137,145.13,144.99,2.2783]
[1750718084894,2.3137,145.13,145.01,15.82491049]
[1750718085190,2.3137,145.13,144.98,224.26]
[1750718085399,2.3137,145.13,145.04,6.8893]
[1750718085598,2.3137,145.13,144.98,224.26]
[1750718085795,2.3137,145.13,145.0,15.82491049]
[1750718086094,2.3137,145.13,145.01,18.18731049]
[1750718086286,2.3137,145.13,145.04,15.82491049]